[Event "*** Titled Tuesday Blitz"]
[Site "Chess.com"]
[Date "2020.11.24"]
[Round "9"]
[White "Kaua18"]
[Black "lefonghua"]
[Result "1-0"]
[WhiteElo "2377"]
[BlackElo "2487"]
[TimeControl "180+1"]
[EndTime "12:03:40 PST"]
[Termination "Kaua18 won by resignation"]

1. e4 {[%clk 0:03:00]} 1... c5 {[%clk 0:03:00.1]} 2. Nf3 {[%clk 0:03:00.3]} 2...
g6 {[%clk 0:03:00.4]} 3. d4 {[%clk 0:03:00.2]} 3... cxd4 {[%clk 0:03:01.3]} 4.
Qxd4 {[%clk 0:03:01.1]} 4... Nf6 {[%clk 0:03:00.9]} 5. Nc3 {[%clk 0:03:01.5]}
5... Nc6 {[%clk 0:03:00.2]} 6. Qa4 {[%clk 0:03:02.1]} 6... d6 {[%clk 0:03:00.2]}
7. e5 {[%clk 0:03:02]} 7... dxe5 {[%clk 0:03:01.1]} 8. Nxe5 {[%clk 0:03:02.9]}
8... Bg7 {[%clk 0:02:59.3]} 9. Nxc6 {[%clk 0:03:00.3]} 9... bxc6 {[%clk
0:03:00.2]} 10. Qxc6+ {[%clk 0:02:59.3]} 10... Bd7 {[%clk 0:02:56.9]} 11. Qa6
{[%clk 0:02:46]} 11... O-O {[%clk 0:02:54]} 12. Be2 {[%clk 0:02:44.3]} 12... Bf5
{[%clk 0:02:30.4]} 13. Bd3 {[%clk 0:02:40]} 13... Bxd3 {[%clk 0:02:26.4]} 14.
Qxd3 {[%clk 0:02:40.9]} 14... Qc7 {[%clk 0:02:17.7]} 15. O-O {[%clk 0:02:34.2]}
15... Rfd8 {[%clk 0:02:14.4]} 16. Qg3 {[%clk 0:02:34.1]} 16... Qxg3 {[%clk
0:02:05.7]} 17. hxg3 {[%clk 0:02:35]} 17... Rac8 {[%clk 0:02:06.3]} 18. Be3
{[%clk 0:02:34.2]} 18... Ng4 {[%clk 0:01:58.1]} 19. Bxa7 {[%clk 0:02:28]} 19...
Bxc3 {[%clk 0:01:58.2]} 20. bxc3 {[%clk 0:02:28.9]} 20... Rxc3 {[%clk
0:01:58.4]} 21. Rfe1 {[%clk 0:02:28.3]} 21... Rd7 {[%clk 0:01:45.2]} 22. Bb8
{[%clk 0:02:16.8]} 22... Rxc2 {[%clk 0:01:41.9]} 23. f3 {[%clk 0:02:16]} 23...
Nf6 {[%clk 0:01:34.1]} 24. Rec1 {[%clk 0:02:05.2]} 24... Rb2 {[%clk 0:01:26.5]}
25. Bf4 {[%clk 0:01:56.4]} 25... Kg7 {[%clk 0:01:04.2]} 26. a4 {[%clk
0:01:53.7]} 26... Re2 {[%clk 0:00:54.6]} 27. a5 {[%clk 0:01:34.5]} 27... Nd5
{[%clk 0:00:54.6]} 28. Rd1 {[%clk 0:01:07.8]} 28... e5 {[%clk 0:00:35]} 29. Kf1
{[%clk 0:00:59.6]} 29... Rc2 {[%clk 0:00:24.2]} 30. Bxe5+ {[%clk 0:00:59.4]}
30... f6 {[%clk 0:00:24.7]} 31. Bd4 {[%clk 0:00:49.8]} 31... Kf7 {[%clk
0:00:17.9]} 32. a6 {[%clk 0:00:49.5]} 32... Nc7 {[%clk 0:00:18.3]} 33. a7 {[%clk
0:00:48.6]} 33... Na8 {[%clk 0:00:18.4]} 34. Bf2 {[%clk 0:00:38.3]} 34... Rcc7
{[%clk 0:00:10.6]} 35. Rxd7+ {[%clk 0:00:34.4]} 35... Rxd7 {[%clk 0:00:11.5]}
36. Rb1 {[%clk 0:00:34.6]} 36... Ke7 {[%clk 0:00:11.9]} 37. Rb8 {[%clk
0:00:34.2]} 37... Rd8 {[%clk 0:00:12.5]} 38. Ke2 {[%clk 0:00:15.4]} 38... h5
{[%clk 0:00:12.6]} 39. g4 {[%clk 0:00:10]} 39... hxg4 {[%clk 0:00:12]} 40. fxg4
{[%clk 0:00:10.9]} 40... Kd7 {[%clk 0:00:12.6]} 41. Bd4 {[%clk 0:00:09.7]} 41...
f5 {[%clk 0:00:10.7]} 42. gxf5 {[%clk 0:00:09.2]} 42... gxf5 {[%clk 0:00:11.6]}
43. Kf3 {[%clk 0:00:09.3]} 43... Nc7 {[%clk 0:00:10.7]} 44. Bf6 {[%clk
0:00:06.6]} 44... Re8 {[%clk 0:00:09.7]} 45. Rxe8 {[%clk 0:00:05.3]} 45... Kxe8
{[%clk 0:00:09.6]} 46. Be5 {[%clk 0:00:05.7]} 46... Na8 {[%clk 0:00:08.7]} 47.
Kf4 {[%clk 0:00:06.1]} 47... Kf7 {[%clk 0:00:08.6]} 48. Kxf5 {[%clk 0:00:06.6]}
48... Nb6 {[%clk 0:00:08.8]} 49. g4 {[%clk 0:00:06.8]} 49... Kg8 {[%clk
0:00:08.9]} 1-0

[Event "*** Titled Tuesday Blitz"]
[Site "Chess.com"]
[Date "2020.11.24"]
[Round "9"]
[White "VerdeNotte"]
[Black "petrpalachev"]
[Result "1-0"]
[WhiteElo "2905"]
[BlackElo "2728"]
[TimeControl "180+1"]
[EndTime "12:03:43 PST"]
[Termination "VerdeNotte won on time"]

1. Nf3 {[%clk 0:03:00.2]} 1... Nf6 {[%clk 0:02:58.3]} 2. c4 {[%clk 0:02:59.5]}
2... e6 {[%clk 0:02:57.9]} 3. g3 {[%clk 0:02:59.5]} 3... d5 {[%clk 0:02:57.9]}
4. Bg2 {[%clk 0:02:59.9]} 4... Be7 {[%clk 0:02:58.5]} 5. O-O {[%clk 0:02:59.8]}
5... O-O {[%clk 0:02:58.7]} 6. b3 {[%clk 0:03:00.4]} 6... b6 {[%clk 0:02:58.6]}
7. Bb2 {[%clk 0:02:55.9]} 7... Bb7 {[%clk 0:02:55.8]} 8. cxd5 {[%clk 0:02:53.9]}
8... Nxd5 {[%clk 0:02:54.2]} 9. d4 {[%clk 0:02:53.4]} 9... Nf6 {[%clk
0:02:52.9]} 10. Nbd2 {[%clk 0:02:50.9]} 10... Nbd7 {[%clk 0:02:50.4]} 11. Nc4
{[%clk 0:02:45.2]} 11... Rc8 {[%clk 0:02:44]} 12. Rc1 {[%clk 0:02:42.9]} 12...
c5 {[%clk 0:02:43.9]} 13. Qd2 {[%clk 0:02:29.9]} 13... Ne4 {[%clk 0:02:32.7]}
14. Qd3 {[%clk 0:02:22.5]} 14... Qc7 {[%clk 0:02:23.3]} 15. Nfe5 {[%clk
0:02:18.1]} 15... Ndf6 {[%clk 0:02:08.7]} 16. e3 {[%clk 0:01:49.8]} 16... Rfd8
{[%clk 0:02:07.5]} 17. Rfd1 {[%clk 0:01:46.9]} 17... Qb8 {[%clk 0:02:07.5]} 18.
Qe2 {[%clk 0:01:41.6]} 18... Qa8 {[%clk 0:02:01.6]} 19. f3 {[%clk 0:01:37.5]}
19... Nd6 {[%clk 0:02:01.1]} 20. dxc5 {[%clk 0:01:36.4]} 20... Nxc4 {[%clk
0:01:59]} 21. Rxd8+ {[%clk 0:01:36]} 21... Rxd8 {[%clk 0:01:58.8]} 22. Nxc4
{[%clk 0:01:36.1]} 22... Bxc5 {[%clk 0:01:59.1]} 23. Bxf6 {[%clk 0:01:32.7]}
23... gxf6 {[%clk 0:02:00]} 24. a4 {[%clk 0:01:24.6]} 24... Bd5 {[%clk
0:01:50.2]} 25. Kh1 {[%clk 0:01:19.8]} 25... Bxc4 {[%clk 0:01:46.7]} 26. Rxc4
{[%clk 0:01:18.7]} 26... Qd5 {[%clk 0:01:47.1]} 27. h4 {[%clk 0:00:50.8]} 27...
Qd1+ {[%clk 0:01:43.3]} 28. Qxd1 {[%clk 0:00:49.8]} 28... Rxd1+ {[%clk
0:01:44.2]} 29. Kh2 {[%clk 0:00:50.5]} 29... Bxe3 {[%clk 0:01:43.9]} 30. g4
{[%clk 0:00:43.5]} 30... e5 {[%clk 0:01:03.1]} 31. b4 {[%clk 0:00:43.6]} 31...
a5 {[%clk 0:00:54.5]} 32. bxa5 {[%clk 0:00:40]} 32... bxa5 {[%clk 0:00:55.3]}
33. Kh3 {[%clk 0:00:36.2]} 33... Ra1 {[%clk 0:00:45.7]} 34. g5 {[%clk
0:00:28.4]} 34... fxg5 {[%clk 0:00:44.8]} 35. hxg5 {[%clk 0:00:28.6]} 35... Bxg5
{[%clk 0:00:44.1]} 36. Rc5 {[%clk 0:00:27.7]} 36... Rxa4 {[%clk 0:00:30.9]} 37.
Bf1 {[%clk 0:00:26.2]} 37... Bf4 {[%clk 0:00:21.4]} 38. Bc4 {[%clk 0:00:19.4]}
38... Ra1 {[%clk 0:00:13.2]} 39. Kg4 {[%clk 0:00:19.1]} 39... Rc1 {[%clk
0:00:08.9]} 40. Rc7 {[%clk 0:00:19]} 40... h6 {[%clk 0:00:04.2]} 41. Kf5 {[%clk
0:00:18.8]} 41... Rd1 {[%clk 0:00:01.4]} 42. Bxf7+ {[%clk 0:00:18.1]} 42... Kf8
{[%clk 0:00:01.4]} 43. Kf6 {[%clk 0:00:17.4]} 43... Rd6+ {[%clk 0:00:01.3]} 44.
Be6 {[%clk 0:00:16.7]} 44... Bg5+ {[%clk 0:00:01.9]} 45. Kxe5 {[%clk 0:00:17]}
45... Rd8 {[%clk 0:00:01.8]} 46. f4 {[%clk 0:00:16.1]} 46... Be7 {[%clk
0:00:01.2]} 47. Ra7 {[%clk 0:00:15]} 47... Bd6+ {[%clk 0:00:01.6]} 48. Kf5
{[%clk 0:00:13.1]} 48... Bb4 {[%clk 0:00:01.1]} 49. Kf6 {[%clk 0:00:10.3]} 1-0

[Event "*** Titled Tuesday Blitz"]
[Site "Chess.com"]
[Date "2020.11.24"]
[Round "9"]
[White "margarita_2703"]
[Black "albi1999"]
[Result "1/2-1/2"]
[WhiteElo "2417"]
[BlackElo "2579"]
[TimeControl "180+1"]
[EndTime "12:03:44 PST"]
[Termination "Game drawn by agreement"]

1. d4 {[%clk 0:03:00.9]} 1... Nf6 {[%clk 0:03:00]} 2. Nf3 {[%clk 0:02:58]} 2...
e6 {[%clk 0:03:00.9]} 3. c4 {[%clk 0:02:56.9]} 3... d5 {[%clk 0:03:00.9]} 4. Nc3
{[%clk 0:02:57.4]} 4... c5 {[%clk 0:02:58.2]} 5. Bg5 {[%clk 0:02:54.9]} 5...
cxd4 {[%clk 0:02:57.7]} 6. Nxd4 {[%clk 0:02:54.6]} 6... e5 {[%clk 0:02:57.8]} 7.
Nf3 {[%clk 0:02:40.7]} 7... d4 {[%clk 0:02:56.3]} 8. Nd5 {[%clk 0:02:40]} 8...
Be6 {[%clk 0:02:46.3]} 9. Qa4+ {[%clk 0:02:30.5]} 9... Bd7 {[%clk 0:01:50.3]}
10. Qb3 {[%clk 0:02:28.3]} 10... Bc6 {[%clk 0:01:27.4]} 11. Nxe5 {[%clk
0:02:23.9]} 11... Bxd5 {[%clk 0:01:16.2]} 12. cxd5 {[%clk 0:02:22.3]} 12... Qxd5
{[%clk 0:01:16.4]} 13. Qxd5 {[%clk 0:02:19.9]} 13... Nxd5 {[%clk 0:01:16.2]} 14.
Nd3 {[%clk 0:02:14.8]} 14... Nc6 {[%clk 0:01:13.1]} 15. a3 {[%clk 0:02:09.1]}
15... Bd6 {[%clk 0:01:05.1]} 16. g3 {[%clk 0:02:08.3]} 16... Nc7 {[%clk
0:01:02.9]} 17. Bg2 {[%clk 0:02:07.4]} 17... Ne6 {[%clk 0:01:02.7]} 18. Bd2
{[%clk 0:02:06]} 18... Kd7 {[%clk 0:01:01.9]} 19. O-O {[%clk 0:02:05.2]} 19...
Rac8 {[%clk 0:01:01.9]} 20. e3 {[%clk 0:02:03.4]} 20... Rhd8 {[%clk 0:01:00]}
21. Rfd1 {[%clk 0:02:00.5]} 21... Ke7 {[%clk 0:00:58.7]} 22. Nf4 {[%clk
0:01:53.2]} 22... Nxf4 {[%clk 0:00:57.1]} 23. exf4 {[%clk 0:01:52.9]} 23... Bc5
{[%clk 0:00:54.4]} 24. Rac1 {[%clk 0:01:51.8]} 24... Bb6 {[%clk 0:00:54.3]} 25.
Rc4 {[%clk 0:01:41.6]} 25... d3 {[%clk 0:00:46.4]} 26. Bc3 {[%clk 0:01:34.2]}
26... Nd4 {[%clk 0:00:29.5]} 27. Rxc8 {[%clk 0:01:30]} 27... Rxc8 {[%clk
0:00:26.3]} 28. Rxd3 {[%clk 0:01:29.4]} 28... Ne2+ {[%clk 0:00:25.4]} 29. Kf1
{[%clk 0:01:29.3]} 29... Nxc3 {[%clk 0:00:25.8]} 30. Rxc3 {[%clk 0:01:29]} 30...
Rxc3 {[%clk 0:00:24.7]} 31. bxc3 {[%clk 0:01:28.6]} 31... Bc5 {[%clk 0:00:25.5]}
32. Bxb7 {[%clk 0:01:28.2]} 32... Bxa3 {[%clk 0:00:25.6]} 33. Be4 {[%clk
0:01:27.8]} 33... h6 {[%clk 0:00:25.3]} 34. Bd5 {[%clk 0:01:27.7]} 34... f6
{[%clk 0:00:25.3]} 35. Ke2 {[%clk 0:01:26.6]} 35... Kd6 {[%clk 0:00:26.2]} 36.
Bb3 {[%clk 0:01:25.1]} 36... Bc5 {[%clk 0:00:25.5]} 37. f3 {[%clk 0:01:23.9]}
37... Bg1 {[%clk 0:00:24.7]} 38. h3 {[%clk 0:01:21.2]} 38... Kc5 {[%clk
0:00:24.9]} 39. g4 {[%clk 0:01:18.7]} 39... a5 {[%clk 0:00:23.5]} 40. Kd3 {[%clk
0:01:13.9]} 40... Bf2 {[%clk 0:00:21.6]} 41. Ke4 {[%clk 0:01:04.8]} 41... Kb5
{[%clk 0:00:20.7]} 42. Kf5 {[%clk 0:01:01.3]} 42... a4 {[%clk 0:00:21]} 43. Be6
{[%clk 0:01:00.4]} 43... Be1 {[%clk 0:00:19.2]} 44. Kg6 {[%clk 0:00:59.1]} 44...
Bxc3 {[%clk 0:00:17.8]} 45. Kxg7 {[%clk 0:00:59.1]} 45... Bd2 {[%clk 0:00:17.7]}
46. Kxf6 {[%clk 0:00:57.9]} 46... Bxf4 {[%clk 0:00:17.9]} 47. Kf5 {[%clk
0:00:57.1]} 47... Bd2 {[%clk 0:00:16.3]} 48. f4 {[%clk 0:00:56.8]} 48... Kc5
{[%clk 0:00:16.7]} 49. Ke4 {[%clk 0:00:56.4]} 49... Kd6 {[%clk 0:00:16.6]} 50.
Ba2 {[%clk 0:00:55.1]} 50... a3 {[%clk 0:00:16.9]} 51. f5 {[%clk 0:00:54.6]}
51... Ke7 {[%clk 0:00:16.9]} 52. h4 {[%clk 0:00:54.2]} 52... Be1 {[%clk
0:00:16.7]} 53. g5 {[%clk 0:00:50.9]} 53... Bxh4 {[%clk 0:00:16]} 54. f6+ {[%clk
0:00:51]} 54... Kf8 {[%clk 0:00:13.8]} 55. gxh6 {[%clk 0:00:49.9]} 55... Bxf6
{[%clk 0:00:13.5]} 56. Kf5 {[%clk 0:00:46]} 56... Bb2 {[%clk 0:00:12.8]} 57. Kg6
{[%clk 0:00:45.8]} 57... Bc1 {[%clk 0:00:11.7]} 58. h7 {[%clk 0:00:42.8]} 58...
Bb2 {[%clk 0:00:11.8]} 59. Kf5 {[%clk 0:00:39.9]} 59... Bh8 {[%clk 0:00:12.7]}
60. Ke4 {[%clk 0:00:39.2]} 60... Bb2 {[%clk 0:00:13.6]} 1/2-1/2

[Event "*** Titled Tuesday Blitz"]
[Site "Chess.com"]
[Date "2020.11.24"]
[Round "9"]
[White "Chigorinetz"]
[Black "Grieve72"]
[Result "0-1"]
[WhiteElo "2550"]
[BlackElo "2438"]
[TimeControl "180+1"]
[EndTime "12:03:47 PST"]
[Termination "Grieve72 won by resignation"]

1. e4 {[%clk 0:03:00.9]} 1... c5 {[%clk 0:02:59]} 2. Nc3 {[%clk 0:02:59.5]} 2...
e6 {[%clk 0:02:58.4]} 3. Nge2 {[%clk 0:02:59.1]} 3... Nc6 {[%clk 0:02:57.5]} 4.
g3 {[%clk 0:02:58.4]} 4... Nf6 {[%clk 0:02:56.3]} 5. Bg2 {[%clk 0:02:57.8]} 5...
d5 {[%clk 0:02:56.5]} 6. exd5 {[%clk 0:02:57.8]} 6... exd5 {[%clk 0:02:57.4]} 7.
d4 {[%clk 0:02:57.3]} 7... cxd4 {[%clk 0:02:56.8]} 8. Nxd4 {[%clk 0:02:56.6]}
8... Bg4 {[%clk 0:02:49.4]} 9. Qd3 {[%clk 0:02:56.1]} 9... Bc5 {[%clk 0:02:32]}
10. Be3 {[%clk 0:02:52.7]} 10... Qb6 {[%clk 0:01:58.8]} 11. Nb3 {[%clk
0:02:04.5]} 11... Bxe3 {[%clk 0:01:46.1]} 12. Qxe3+ {[%clk 0:02:05.4]} 12...
Qxe3+ {[%clk 0:01:45.5]} 13. fxe3 {[%clk 0:02:05.5]} 13... Nb4 {[%clk
0:01:29.3]} 14. Kd2 {[%clk 0:02:02]} 14... O-O {[%clk 0:01:29]} 15. a3 {[%clk
0:01:50.9]} 15... Nc6 {[%clk 0:01:28.9]} 16. h3 {[%clk 0:01:42]} 16... Bh5
{[%clk 0:01:17]} 17. g4 {[%clk 0:01:41.3]} 17... Bg6 {[%clk 0:01:17.1]} 18. g5
{[%clk 0:01:39.3]} 18... Ne4+ {[%clk 0:01:11.5]} 19. Bxe4 {[%clk 0:01:38]} 19...
dxe4 {[%clk 0:01:01.2]} 20. Nb5 {[%clk 0:01:34.8]} 20... Rad8+ {[%clk
0:00:51.5]} 21. N5d4 {[%clk 0:01:34.3]} 21... Rd5 {[%clk 0:00:42]} 22. h4 {[%clk
0:01:32.9]} 22... Bh5 {[%clk 0:00:40]} 23. Rhf1 {[%clk 0:01:28.8]} 23... Ne5
{[%clk 0:00:36.3]} 24. Ke1 {[%clk 0:00:59.8]} 24... Rc8 {[%clk 0:00:26]} 25. Nd2
{[%clk 0:00:55.1]} 25... Rxc2 {[%clk 0:00:19.4]} 26. Kf2 {[%clk 0:00:37.5]}
26... Rxd2+ {[%clk 0:00:18.6]} 27. Kg3 {[%clk 0:00:37.6]} 27... Ng6 {[%clk
0:00:11.6]} 28. Rac1 {[%clk 0:00:36]} 28... Rd8 {[%clk 0:00:07.5]} 29. Rc7
{[%clk 0:00:35.5]} 29... Nf8 {[%clk 0:00:07.7]} 30. Rxb7 {[%clk 0:00:29.3]}
30... h6 {[%clk 0:00:08.1]} 31. a4 {[%clk 0:00:25.1]} 31... Ne6 {[%clk
0:00:05.9]} 32. Nxe6 {[%clk 0:00:21.8]} 32... fxe6 {[%clk 0:00:06.8]} 33. gxh6
{[%clk 0:00:22.3]} 33... gxh6 {[%clk 0:00:06.8]} 34. Rg1 {[%clk 0:00:22.6]}
34... Kh8 {[%clk 0:00:06.4]} 35. Kf4 {[%clk 0:00:22.3]} 35... R2d5 {[%clk
0:00:01.8]} 36. b4 {[%clk 0:00:18.9]} 36... Rf5+ {[%clk 0:00:02.4]} 37. Kg3
{[%clk 0:00:16.7]} 37... Rg8+ {[%clk 0:00:02.8]} 38. Kh2 {[%clk 0:00:16.6]}
38... Rf2+ {[%clk 0:00:03.1]} 39. Kh3 {[%clk 0:00:15.4]} 39... Rxg1 {[%clk
0:00:02.4]} 40. Rb8+ {[%clk 0:00:14.8]} 40... Rg8 {[%clk 0:00:03]} 41. Rb7
{[%clk 0:00:15.7]} 41... Rf3+ {[%clk 0:00:01.3]} 42. Kh2 {[%clk 0:00:15.8]}
42... Rf2+ {[%clk 0:00:02.2]} 43. Kh3 {[%clk 0:00:13.1]} 43... Rf3+ {[%clk
0:00:03.1]} 44. Kh2 {[%clk 0:00:13]} 44... Rxe3 {[%clk 0:00:04]} 45. Rxa7 {[%clk
0:00:11.9]} 45... Re2+ {[%clk 0:00:04.4]} 46. Kh3 {[%clk 0:00:11.8]} 46... Bg6
{[%clk 0:00:04.5]} 47. Kg4 {[%clk 0:00:11.4]} 47... Bf5+ {[%clk 0:00:04.9]} 48.
Kf4 {[%clk 0:00:11.4]} 48... Rf2+ {[%clk 0:00:05.5]} 49. Ke5 {[%clk 0:00:10.3]}
49... e3 {[%clk 0:00:05.6]} 50. Rc7 {[%clk 0:00:09.3]} 50... e2 {[%clk
0:00:05.9]} 51. Rc1 {[%clk 0:00:09.6]} 51... Rf1 {[%clk 0:00:06.3]} 52. Kf6
{[%clk 0:00:09.5]} 52... Rxc1 {[%clk 0:00:05.9]} 0-1

[Event "*** Titled Tuesday Blitz"]
[Site "Chess.com"]
[Date "2020.11.24"]
[Round "9"]
[White "Leonid_Starozhilov"]
[Black "Chessdreamer2020"]
[Result "1-0"]
[WhiteElo "2661"]
[BlackElo "2522"]
[TimeControl "180+1"]
[EndTime "12:03:49 PST"]
[Termination "Leonid_Starozhilov won by checkmate"]

1. e4 {[%clk 0:03:00.9]} 1... d6 {[%clk 0:01:35.6]} 2. c4 {[%clk 0:02:57.1]}
2... Nf6 {[%clk 0:01:36.1]} 3. Nc3 {[%clk 0:02:57.2]} 3... e5 {[%clk 0:01:32]}
4. g3 {[%clk 0:02:56.9]} 4... Nc6 {[%clk 0:01:31.6]} 5. Bg2 {[%clk 0:02:57.4]}
5... Be7 {[%clk 0:01:31.4]} 6. Nge2 {[%clk 0:02:57.5]} 6... O-O {[%clk
0:01:31.8]} 7. O-O {[%clk 0:02:56.7]} 7... Be6 {[%clk 0:01:28.9]} 8. d3 {[%clk
0:02:56.1]} 8... Nd7 {[%clk 0:01:27.8]} 9. Nd5 {[%clk 0:02:52.4]} 9... f5 {[%clk
0:01:26]} 10. Nec3 {[%clk 0:02:22.1]} 10... fxe4 {[%clk 0:01:25.7]} 11. Nxe4
{[%clk 0:02:17.6]} 11... Nd4 {[%clk 0:01:23.9]} 12. Be3 {[%clk 0:02:14.9]} 12...
c6 {[%clk 0:01:13.8]} 13. Nxe7+ {[%clk 0:02:13.1]} 13... Qxe7 {[%clk 0:01:12.5]}
14. Bxd4 {[%clk 0:02:00.2]} 14... exd4 {[%clk 0:01:12.3]} 15. f4 {[%clk
0:02:00.4]} 15... Nc5 {[%clk 0:01:08.2]} 16. Nxc5 {[%clk 0:01:59.1]} 16... dxc5
{[%clk 0:01:08]} 17. Qd2 {[%clk 0:01:51.3]} 17... Qd7 {[%clk 0:01:06.8]} 18.
Rae1 {[%clk 0:01:50.9]} 18... Rae8 {[%clk 0:01:06]} 19. Re5 {[%clk 0:01:50.4]}
19... Bf5 {[%clk 0:01:02.5]} 20. Rfe1 {[%clk 0:01:46.5]} 20... Rxe5 {[%clk
0:01:02.9]} 21. Rxe5 {[%clk 0:01:46.5]} 21... Re8 {[%clk 0:01:02.5]} 22. Rxe8+
{[%clk 0:01:16]} 22... Qxe8 {[%clk 0:01:02.1]} 23. Kf2 {[%clk 0:01:16.6]} 23...
h5 {[%clk 0:00:56.5]} 24. Bf3 {[%clk 0:01:13.4]} 24... g6 {[%clk 0:00:56]} 25.
Qe2 {[%clk 0:01:11.3]} 25... Qxe2+ {[%clk 0:00:51.4]} 26. Kxe2 {[%clk
0:01:09.6]} 26... Kf7 {[%clk 0:00:52.3]} 27. Kd2 {[%clk 0:01:03.9]} 27... Ke6
{[%clk 0:00:52.2]} 28. a3 {[%clk 0:01:01.3]} 28... Kd6 {[%clk 0:00:52]} 29. Be2
{[%clk 0:00:58.6]} 29... Bg4 {[%clk 0:00:50.9]} 30. Bxg4 {[%clk 0:00:51.9]}
30... hxg4 {[%clk 0:00:50.5]} 31. Ke2 {[%clk 0:00:52.4]} 31... b5 {[%clk
0:00:46.9]} 32. b3 {[%clk 0:00:52.5]} 32... a5 {[%clk 0:00:46.5]} 33. a4 {[%clk
0:00:52]} 33... b4 {[%clk 0:00:45.8]} 34. Kf2 {[%clk 0:00:52]} 34... Ke6 {[%clk
0:00:45.5]} 35. Kg2 {[%clk 0:00:52.4]} 35... Kf5 {[%clk 0:00:45.4]} 36. h3
{[%clk 0:00:52.3]} 36... g5 {[%clk 0:00:40.9]} 37. hxg4+ {[%clk 0:00:44.4]}
37... Kxg4 {[%clk 0:00:40.3]} 38. fxg5 {[%clk 0:00:45.1]} 38... Kxg5 {[%clk
0:00:41]} 39. Kf3 {[%clk 0:00:45.8]} 39... Kf5 {[%clk 0:00:41.6]} 40. g4+ {[%clk
0:00:46.2]} 40... Kg5 {[%clk 0:00:42.2]} 41. Kg3 {[%clk 0:00:46.9]} 41... Kg6
{[%clk 0:00:42.4]} 42. Kf4 {[%clk 0:00:47.1]} 42... Kf6 {[%clk 0:00:43]} 43. g5+
{[%clk 0:00:48]} 43... Kg6 {[%clk 0:00:43.3]} 44. Kg4 {[%clk 0:00:48.6]} 44...
Kg7 {[%clk 0:00:43.8]} 45. Kf5 {[%clk 0:00:49]} 45... Kf7 {[%clk 0:00:44.4]} 46.
g6+ {[%clk 0:00:48.7]} 46... Kg7 {[%clk 0:00:44.5]} 47. Kg5 {[%clk 0:00:49.3]}
47... Kg8 {[%clk 0:00:44.7]} 48. Kf6 {[%clk 0:00:48.7]} 48... Kf8 {[%clk
0:00:45.2]} 49. Ke6 {[%clk 0:00:46.1]} 49... Kg7 {[%clk 0:00:45.7]} 50. Kd6
{[%clk 0:00:46.6]} 50... Kxg6 {[%clk 0:00:46.3]} 51. Kxc5 {[%clk 0:00:42.8]}
51... Kf5 {[%clk 0:00:46.8]} 52. Kxd4 {[%clk 0:00:41.4]} 52... Kf4 {[%clk
0:00:47.4]} 53. Kc5 {[%clk 0:00:19.5]} 53... Ke3 {[%clk 0:00:47.6]} 54. d4
{[%clk 0:00:16.2]} 54... Kd3 {[%clk 0:00:47.6]} 55. d5 {[%clk 0:00:14.3]} 55...
cxd5 {[%clk 0:00:47.8]} 56. cxd5 {[%clk 0:00:11.7]} 56... Kc3 {[%clk 0:00:48.3]}
57. d6 {[%clk 0:00:12.5]} 57... Kxb3 {[%clk 0:00:48.7]} 58. d7 {[%clk
0:00:13.4]} 58... Ka2 {[%clk 0:00:46.7]} 59. d8=Q {[%clk 0:00:13.4]} 59... b3
{[%clk 0:00:47.3]} 60. Qxa5 {[%clk 0:00:11.1]} 60... b2 {[%clk 0:00:47.2]} 61.
Qb4 {[%clk 0:00:10.4]} 61... b1=Q {[%clk 0:00:47.5]} 62. Qxb1+ {[%clk
0:00:10.5]} 62... Kxb1 {[%clk 0:00:48.4]} 63. a5 {[%clk 0:00:11.4]} 63... Kc2
{[%clk 0:00:49.2]} 64. a6 {[%clk 0:00:12.3]} 64... Kd3 {[%clk 0:00:50.1]} 65. a7
{[%clk 0:00:13.2]} 65... Ke4 {[%clk 0:00:51]} 66. a8=Q+ {[%clk 0:00:13.8]} 66...
Ke5 {[%clk 0:00:51.9]} 67. Qd5+ {[%clk 0:00:14.4]} 67... Kf4 {[%clk 0:00:51.4]}
68. Qe6 {[%clk 0:00:14.4]} 68... Kg3 {[%clk 0:00:52.3]} 69. Qf5 {[%clk 0:00:14]}
69... Kg2 {[%clk 0:00:52.4]} 70. Qf4 {[%clk 0:00:14.2]} 70... Kg1 {[%clk
0:00:53.3]} 71. Qd2 {[%clk 0:00:13.8]} 71... Kh1 {[%clk 0:00:54.2]} 72. Kd4
{[%clk 0:00:14.7]} 72... Kg1 {[%clk 0:00:55.1]} 73. Ke3 {[%clk 0:00:15.6]} 73...
Kh1 {[%clk 0:00:56]} 74. Kf3 {[%clk 0:00:16.5]} 74... Kg1 {[%clk 0:00:56.9]} 75.
Qg2# {[%clk 0:00:16.8]} 1-0